Workbook

Sheet Årstendenser
A1: Titel for udgiftstendenser
A2: Måned | B2: Udgift 1 | C2: Udgift 2 | D2: Udgift 3 | E2: Udgift 4 | F2: Udgift 5
A3: Jan | B3: =SUBTOTAL(109,Udgift11[Beløb]) -> 1,000.00 | C3: =SUBTOTAL(109,Udgift21[Beløb]) -> 2,000.00 | D3: =SUBTOTAL(109,Udgift31[Beløb]) -> 3,000.00 | E3: =SUBTOTAL(109,Udgift41[Beløb]) -> 4,000.00 | F3: =SUBTOTAL(109,Udgift51[Beløb]) -> 5,000.00
A4: Feb | B4: =SUBTOTAL(109,Udgift12[Beløb]) -> 2,000.00 | C4: =SUBTOTAL(109,Udgift22[Beløb]) -> 2,000.00 | D4: =SUBTOTAL(109,Udgift32[Beløb]) -> 3,000.00 | E4: =SUBTOTAL(109,Udgift42[Beløb]) -> 4,000.00 | F4: =SUBTOTAL(109,Udgift52[Beløb]) -> 5,000.00
A5: Mar | B5: =SUBTOTAL(109,Udgift13[Beløb]) -> 3,000.00 | C5: =SUBTOTAL(109,Udgift23[Beløb]) -> 2,000.00 | D5: =SUBTOTAL(109,Udgift33[Beløb]) -> 3,000.00 | E5: =SUBTOTAL(109,Udgift43[Beløb]) -> 4,000.00 | F5: =SUBTOTAL(109,Udgift53[Beløb]) -> 5,000.00
A6: Apr | B6: =SUBTOTAL(109,Udgift14[Beløb]) -> 4,000.00 | C6: =SUBTOTAL(109,Udgift24[Beløb]) -> 2,000.00 | D6: =SUBTOTAL(109,Udgift34[Beløb]) -> 3,000.00 | E6: =SUBTOTAL(109,Udgift44[Beløb]) -> 4,000.00 | F6: =SUBTOTAL(109,Udgift54[Beløb]) -> 5,000.00
A7: Maj | B7: =SUBTOTAL(109,Udgift15[Beløb]) -> 5,000.00 | C7: =SUBTOTAL(109,Udgift25[Beløb]) -> 2,000.00 | D7: =SUBTOTAL(109,Udgift35[Beløb]) -> 3,000.00 | E7: =SUBTOTAL(109,Udgift45[Beløb]) -> 4,000.00 | F7: =SUBTOTAL(109,Udgift55[Beløb]) -> 5,000.00
A8: Jun | B8: =SUBTOTAL(109,Udgift16[Beløb]) -> 6,000.00 | C8: =SUBTOTAL(109,Udgift26[Beløb]) -> 2,000.00 | D8: =SUBTOTAL(109,Udgift36[Beløb]) -> 3,000.00 | E8: =SUBTOTAL(109,Udgift46[Beløb]) -> 4,000.00 | F8: =SUBTOTAL(109,Udgift56[Beløb]) -> 5,000.00
A9: Jul | B9: =SUBTOTAL(109,Udgift17[Amount]) -> 7,000.00 | C9: =SUBTOTAL(109,Udgift27[Amount]) -> 2,000.00 | D9: =SUBTOTAL(109,Udgift37[Amount]) -> 3,000.00 | E9: =SUBTOTAL(109,Udgift47[Amount]) -> 4,000.00 | F9: =SUBTOTAL(109,Udgift57[Amount]) -> 5,000.00
A10: Aug | B10: =SUBTOTAL(109,Udgift18[Beløb]) -> 8,000.00 | C10: =SUBTOTAL(109,Udgift28[Beløb]) -> 2,000.00 | D10: =SUBTOTAL(109,Udgift38[Beløb]) -> 3,000.00 | E10: =SUBTOTAL(109,Udgift48[Beløb]) -> 4,000.00 | F10: =SUBTOTAL(109,Udgift58[Beløb]) -> 5,000.00
A11: Sep | B11: =SUBTOTAL(109,Udgift19[Beløb]) -> 9,000.00 | C11: =SUBTOTAL(109,Udgift29[Beløb]) -> 2,000.00 | D11: =SUBTOTAL(109,Udgift39[Beløb]) -> 3,000.00 | E11: =SUBTOTAL(109,Udgift49[Beløb]) -> 4,000.00 | F11: =SUBTOTAL(109,Udgift59[Beløb]) -> 5,000.00
A12: Okt | B12: =SUBTOTAL(109,Udgift110[Beløb]) -> 10,000.00 | C12: =SUBTOTAL(109,Udgift210[Beløb]) -> 2,000.00 | D12: =SUBTOTAL(109,Udgift310[Beløb]) -> 3,000.00 | E12: =SUBTOTAL(109,Udgift410[Beløb]) -> 4,000.00 | F12: =SUBTOTAL(109,Udgift510[Beløb]) -> 5,000.00
A13: Nov | B13: =SUBTOTAL(109,Udgift111[Beløb]) -> 11,000.00 | C13: =SUBTOTAL(109,Udgift211[Beløb]) -> 2,000.00 | D13: =SUBTOTAL(109,Udgift311[Beløb]) -> 3,000.00 | E13: =SUBTOTAL(109,Udgift411[Beløb]) -> 4,000.00 | F13: =SUBTOTAL(109,Udgift511[Beløb]) -> 5,000.00
A14: Dec | B14: =SUBTOTAL(109,Udgift112[Beløb]) -> 12,000.00 | C14: =SUBTOTAL(109,Udgift212[Beløb]) -> 2,000.00 | D14: =SUBTOTAL(109,Udgift312[Beløb]) -> 3,000.00 | E14: =SUBTOTAL(109,Udgift412[Beløb]) -> 4,000.00 | F14: =SUBTOTAL(109,Udgift512[Beløb]) -> 5,000.00
A15: Total | B15: =SUM(B3:B14) -> 78,000.00 | C15: =SUM(C3:C14) -> 24,000.00 | D15: =SUM(D3:D14) -> 36,000.00 | E15: =SUM(E3:E14) -> 48,000.00 | F15: =SUM(F3:F14) -> 60,000.00
A16: Tendenser

Sheet Jan
A1: Udgifter i januar
C3: TOTAL | D3: =SUM(D10,D17,D24,D30,D36) -> kr. 15,000.00
A4: Udgift 1
A5: Dato | B5: Ordrenr. | C5: Leverandør/beskrivelse | D5: Beløb
A6: 2010-01-08 | C6: Eksempel 1 | D6: 1,000.00
A10: Subtotal | D10: =SUBTOTAL(109,Udgift11[Beløb]) -> 1,000.00
A11: x
A12: Udgift 2
A13: Dato | B13: Ordrenr. | C13: Beskrivelse | D13: Beløb
A14: 2010-01-04 | C14: Eksempel 2 | D14: 2,000.00
A17: Subtotal | D17: =SUBTOTAL(109,Udgift21[Beløb]) -> 2,000.00
A18: x
A19: Udgift 3
A20: Dato | B20: Ordrenr. | C20: Leverandør/beskrivelse | D20: Beløb
A21: 2010-01-02 | C21: Eksempel 3 | D21: 3,000.00
A24: Subtotal | D24: =SUBTOTAL(109,Udgift31[Beløb]) -> 3,000.00
A25: x
A26: Udgift 4
A27: Dato | B27: Ordrenr. | C27: Leverandør/beskrivelse | D27: Beløb
A28: 2010-01-10 | C28: Eksempel 4 | D28: 4,000.00
A30: Subtotal | D30: =SUBTOTAL(109,Udgift41[Beløb]) -> 4,000.00
A31: s
A32: Udgift 5
A33: Dato | B33: Ordrenr. | C33: Leverandør/beskrivelse | D33: Beløb
A34: 2010-01-25 | C34: Eksempel 5 | D34: 5,000.00
A36: Subtotal | D36: =SUBTOTAL(109,Udgift51[Beløb]) -> 5,000.00

Sheet Feb
A1: Udgifter i februar
C3: TOTAL | D3: =SUM(D10,D17,D24,D30,D36) -> 16,000.00
A4: Udgift 1
A5: Dato | B5: Ordrenr. | C5: Leverandør/beskrivelse | D5: Beløb
A6: 2010-02-08 | C6: Eksempel 1 | D6: 2,000.00
A10: Subtotal | D10: =SUBTOTAL(109,Udgift12[Beløb]) -> 2,000.00
A11: x
A12: Udgift 2
A13: Dato | B13: Ordrenr. | C13: Beskrivelse | D13: Beløb
A14: 2010-02-04 | C14: Eksempel 2 | D14: 2,000.00
A17: Subtotal | D17: =SUBTOTAL(109,Udgift22[Beløb]) -> 2,000.00
A18: x
A19: Udgift 3
A20: Dato | B20: Ordrenr. | C20: Leverandør/beskrivelse | D20: Beløb
A21: 2010-02-02 | C21: Eksempel 3 | D21: 3,000.00
A24: Subtotal | D24: =SUBTOTAL(109,Udgift32[Beløb]) -> 3,000.00
A25: x
A26: Udgift 4
A27: Dato | B27: Ordrenr. | C27: Leverandør/beskrivelse | D27: Beløb
A28: 2010-02-10 | C28: Eksempel 4 | D28: 4,000.00
A30: Subtotal | D30: =SUBTOTAL(109,Udgift42[Beløb]) -> 4,000.00
A31: s
A32: Udgift 5
A33: Dato | B33: Ordrenr. | C33: Leverandør/beskrivelse | D33: Beløb
A34: 2010-02-25 | C34: Eksempel 5 | D34: 5,000.00
A36: Subtotal | D36: =SUBTOTAL(109,Udgift52[Beløb]) -> 5,000.00

Sheet Mar
A1: Udgifter i marts
C3: TOTAL | D3: =SUM(D10,D17,D24,D30,D36) -> 17,000.00
A4: Udgift 1
A5: Dato | B5: Ordrenr. | C5: Leverandør/beskrivelse | D5: Beløb
A6: 2010-03-08 | C6: Eksempel 1 | D6: 3,000.00
A10: Subtotal | D10: =SUBTOTAL(109,Udgift13[Beløb]) -> 3,000.00
A11: x
A12: Udgift 2
A13: Dato | B13: Ordrenr. | C13: Beskrivelse | D13: Beløb
A14: 2010-03-04 | C14: Eksempel 2 | D14: 2,000.00
A17: Subtotal | D17: =SUBTOTAL(109,Udgift23[Beløb]) -> 2,000.00
A18: x
A19: Udgift 3
A20: Dato | B20: Ordrenr. | C20: Leverandør/beskrivelse | D20: Beløb
A21: 2010-03-02 | C21: Eksempel 3 | D21: 3,000.00
A24: Subtotal | D24: =SUBTOTAL(109,Udgift33[Beløb]) -> 3,000.00
A25: x
A26: Udgift 4
A27: Dato | B27: Ordrenr. | C27: Leverandør/beskrivelse | D27: Beløb
A28: 2010-03-10 | C28: Eksempel 4 | D28: 4,000.00
A30: Subtotal | D30: =SUBTOTAL(109,Udgift43[Beløb]) -> 4,000.00
A31: s
A32: Udgift 5
A33: Dato | B33: Ordrenr. | C33: Leverandør/beskrivelse | D33: Beløb
A34: 2010-03-25 | C34: Eksempel 5 | D34: 5,000.00
A36: Subtotal | D36: =SUBTOTAL(109,Udgift53[Beløb]) -> 5,000.00

Sheet Apr
A1: Udgifter i april
C3: TOTAL | D3: =SUM(D10,D17,D24,D30,D36) -> 18,000.00
A4: Udgift 1
A5: Dato | B5: Ordrenr. | C5: Leverandør/beskrivelse | D5: Beløb
A6: 2010-04-08 | C6: Eksempel 1 | D6: 4,000.00
A10: Subtotal | D10: =SUBTOTAL(109,Udgift14[Beløb]) -> 4,000.00
A11: x
A12: Udgift 2
A13: Dato | B13: Ordrenr. | C13: Beskrivelse | D13: Beløb
A14: 2010-04-04 | C14: Eksempel 2 | D14: 2,000.00
A17: Subtotal | D17: =SUBTOTAL(109,Udgift24[Beløb]) -> 2,000.00
A18: x
A19: Udgift 3
A20: Dato | B20: Ordrenr. | C20: Leverandør/beskrivelse | D20: Beløb
A21: 2010-04-02 | C21: Eksempel 3 | D21: 3,000.00
A24: Subtotal | D24: =SUBTOTAL(109,Udgift34[Beløb]) -> 3,000.00
A25: x
A26: Udgift 4
A27: Dato | B27: Ordrenr. | C27: Leverandør/beskrivelse | D27: Beløb
A28: 2010-04-10 | C28: Eksempel 4 | D28: 4,000.00
A30: Subtotal | D30: =SUBTOTAL(109,Udgift44[Beløb]) -> 4,000.00
A31: s
A32: Udgift 5
A33: Dato | B33: Ordrenr. | C33: Leverandør/beskrivelse | D33: Beløb
A34: 2010-04-25 | C34: Eksempel 5 | D34: 5,000.00
A36: Subtotal | D36: =SUBTOTAL(109,Udgift54[Beløb]) -> 5,000.00

Sheet Maj
A1: Udgifter i maj
C3: TOTAL | D3: =SUM(D10,D17,D24,D30,D36) -> 19,000.00
A4: Udgift 1
A5: Dato | B5: Ordrenr. | C5: Leverandør/beskrivelse | D5: Beløb
A6: 2010-05-08 | C6: Eksempel 1 | D6: 5,000.00
A10: Subtotal | D10: =SUBTOTAL(109,Udgift15[Beløb]) -> 5,000.00
A11: x
A12: Udgift 2
A13: Dato | B13: Ordrenr. | C13: Beskrivelse | D13: Beløb
A14: 2010-05-04 | C14: Eksempel 2 | D14: 2,000.00
A17: Subtotal | D17: =SUBTOTAL(109,Udgift25[Beløb]) -> 2,000.00
A18: x
A19: Udgift 3
A20: Dato | B20: Ordrenr. | C20: Leverandør/beskrivelse | D20: Beløb
A21: 2010-05-02 | C21: Eksempel 3 | D21: 3,000.00
A24: Subtotal | D24: =SUBTOTAL(109,Udgift35[Beløb]) -> 3,000.00
A25: x
A26: Udgift 4
A27: Dato | B27: Ordrenr. | C27: Leverandør/beskrivelse | D27: Beløb
A28: 2010-05-10 | C28: Eksempel 4 | D28: 4,000.00
A30: Subtotal | D30: =SUBTOTAL(109,Udgift45[Beløb]) -> 4,000.00
A31: s
A32: Udgift 5
A33: Dato | B33: Ordrenr. | C33: Leverandør/beskrivelse | D33: Beløb
A34: 2010-05-25 | C34: Eksempel 5 | D34: 5,000.00
A36: Subtotal | D36: =SUBTOTAL(109,Udgift55[Beløb]) -> 5,000.00

Sheet Jun
A1: Udgifter i juni
C3: TOTAL | D3: =SUM(D10,D17,D24,D30,D36) -> 20,000.00
A4: Udgift 1
A5: Dato | B5: Ordrenr. | C5: Leverandør/beskrivelse | D5: Beløb
A6: 2010-06-08 | C6: Eksempel 1 | D6: 6,000.00
A10: Subtotal | D10: =SUBTOTAL(109,Udgift16[Beløb]) -> 6,000.00
A11: x
A12: Udgift 2
A13: Dato | B13: Ordrenr. | C13: Beskrivelse | D13: Beløb
A14: 2010-06-04 | C14: Eksempel 2 | D14: 2,000.00
A17: Subtotal | D17: =SUBTOTAL(109,Udgift26[Beløb]) -> 2,000.00
A18: x
A19: Udgift 3
A20: Dato | B20: Ordrenr. | C20: Leverandør/beskrivelse | D20: Beløb
A21: 2010-06-02 | C21: Eksempel 3 | D21: 3,000.00
A24: Subtotal | D24: =SUBTOTAL(109,Udgift36[Beløb]) -> 3,000.00
A25: x
A26: Udgift 4
A27: Dato | B27: Ordrenr. | C27: Leverandør/beskrivelse | D27: Beløb
A28: 2010-06-10 | C28: Eksempel 4 | D28: 4,000.00
A30: Subtotal | D30: =SUBTOTAL(109,Udgift46[Beløb]) -> 4,000.00
A31: s
A32: Udgift 5
A33: Dato | B33: Ordrenr. | C33: Leverandør/beskrivelse | D33: Beløb
A34: 2010-06-25 | C34: Eksempel 5 | D34: 5,000.00
A36: Subtotal | D36: =SUBTOTAL(109,Udgift56[Beløb]) -> 5,000.00

Sheet Jul
A1: Udgifter i juli
C3: TOTAL | D3: =SUM(D10,D17,D24,D30,D36) -> 21,000.00
A4: Udgift 1
A5: Dato | B5: PO# | C5: Leverandør/beskrivelse | D5: Amount
A6: 2010-07-08 | C6: Eksempel 1 | D6: 7,000.00
A10: Subtotal | D10: =SUBTOTAL(109,Udgift17[Amount]) -> 7,000.00
A11: x
A12: Udgift 2
A13: Dato | B13: PO# | C13: Beskrivelse | D13: Amount
A14: 2010-07-04 | C14: Eksempel 2 | D14: 2,000.00
A17: Subtotal | D17: =SUBTOTAL(109,Udgift27[Amount]) -> 2,000.00
A18: x
A19: Udgift 3
A20: Dato | B20: PO# | C20: Leverandør/beskrivelse | D20: Amount
A21: 2010-07-02 | C21: Eksempel 3 | D21: 3,000.00
A24: Subtotal | D24: =SUBTOTAL(109,Udgift37[Amount]) -> 3,000.00
A25: x
A26: Udgift 4
A27: Dato | B27: PO# | C27: Leverandør/beskrivelse | D27: Amount
A28: 2010-07-10 | C28: Eksempel 4 | D28: 4,000.00
A30: Subtotal | D30: =SUBTOTAL(109,Udgift47[Amount]) -> 4,000.00
A31: s
A32: Udgift 5
A33: Dato | B33: PO# | C33: Leverandør/beskrivelse | D33: Amount
A34: 2010-07-25 | C34: Eksempel 5 | D34: 5,000.00
A36: Subtotal | D36: =SUBTOTAL(109,Udgift57[Amount]) -> 5,000.00

Sheet Aug
A1: Udgifter i august
C3: TOTAL | D3: =SUM(D10,D17,D24,D30,D36) -> 22,000.00
A4: Udgift 1
A5: Dato | B5: Ordrenr. | C5: Leverandør/beskrivelse | D5: Beløb
A6: 2010-08-08 | C6: Eksempel 1 | D6: 8,000.00
A10: Subtotal | D10: =SUBTOTAL(109,Udgift18[Beløb]) -> 8,000.00
A11: x
A12: Udgift 2
A13: Dato | B13: Ordrenr. | C13: Beskrivelse | D13: Beløb
A14: 2010-08-04 | C14: Eksempel 2 | D14: 2,000.00
A17: Subtotal | D17: =SUBTOTAL(109,Udgift28[Beløb]) -> 2,000.00
A18: x
A19: Udgift 3
A20: Dato | B20: Ordrenr. | C20: Leverandør/beskrivelse | D20: Beløb
A21: 2010-08-02 | C21: Eksempel 3 | D21: 3,000.00
A24: Subtotal | D24: =SUBTOTAL(109,Udgift38[Beløb]) -> 3,000.00
A25: x
A26: Udgift 4
A27: Dato | B27: Ordrenr. | C27: Leverandør/beskrivelse | D27: Beløb
A28: 2010-08-10 | C28: Eksempel 4 | D28: 4,000.00
A30: Subtotal | D30: =SUBTOTAL(109,Udgift48[Beløb]) -> 4,000.00
A31: s
A32: Udgift 5
A33: Dato | B33: Ordrenr. | C33: Leverandør/beskrivelse | D33: Beløb
A34: 2010-08-25 | C34: Eksempel 5 | D34: 5,000.00
A36: Subtotal | D36: =SUBTOTAL(109,Udgift58[Beløb]) -> 5,000.00

Sheet Sep
A1: Udgifter i september
C3: TOTAL | D3: =SUM(D10,D17,D24,D30,D36) -> 23,000.00
A4: Udgift 1
A5: Dato | B5: Ordrenr. | C5: Leverandør/beskrivelse | D5: Beløb
A6: 2010-09-08 | C6: Eksempel 1 | D6: 9,000.00
A10: Subtotal | D10: =SUBTOTAL(109,Udgift19[Beløb]) -> 9,000.00
A11: x
A12: Udgift 2
A13: Dato | B13: Ordrenr. | C13: Beskrivelse | D13: Beløb
A14: 2010-09-04 | C14: Eksempel 2 | D14: 2,000.00
A17: Subtotal | D17: =SUBTOTAL(109,Udgift29[Beløb]) -> 2,000.00
A18: x
A19: Udgift 3
A20: Dato | B20: Ordrenr. | C20: Leverandør/beskrivelse | D20: Beløb
A21: 2010-09-02 | C21: Eksempel 3 | D21: 3,000.00
A24: Subtotal | D24: =SUBTOTAL(109,Udgift39[Beløb]) -> 3,000.00
A25: x
A26: Udgift 4
A27: Dato | B27: Ordrenr. | C27: Leverandør/beskrivelse | D27: Beløb
A28: 2010-09-10 | C28: Eksempel 4 | D28: 4,000.00
A30: Subtotal | D30: =SUBTOTAL(109,Udgift49[Beløb]) -> 4,000.00
A31: s
A32: Udgift 5
A33: Dato | B33: Ordrenr. | C33: Leverandør/beskrivelse | D33: Beløb
A34: 2010-09-25 | C34: Eksempel 5 | D34: 5,000.00
A36: Subtotal | D36: =SUBTOTAL(109,Udgift59[Beløb]) -> 5,000.00

Sheet Okt
A1: Udgifter i oktober
C3: TOTAL | D3: =SUM(D10,D17,D24,D30,D36) -> 24,000.00
A4: Udgift 1
A5: Dato | B5: Ordrenr. | C5: Leverandør/beskrivelse | D5: Beløb
A6: 2010-10-08 | C6: Eksempel 1 | D6: 10,000.00
A10: Subtotal | D10: =SUBTOTAL(109,Udgift110[Beløb]) -> 10,000.00
A11: x
A12: Udgift 2
A13: Dato | B13: Ordrenr. | C13: Beskrivelse | D13: Beløb
A14: 2010-10-04 | C14: Eksempel 2 | D14: 2,000.00
A17: Subtotal | D17: =SUBTOTAL(109,Udgift210[Beløb]) -> 2,000.00
A18: x
A19: Udgift 3
A20: Dato | B20: Ordrenr. | C20: Leverandør/beskrivelse | D20: Beløb
A21: 2010-10-02 | C21: Eksempel 3 | D21: 3,000.00
A24: Subtotal | D24: =SUBTOTAL(109,Udgift310[Beløb]) -> 3,000.00
A25: x
A26: Udgift 4
A27: Dato | B27: Ordrenr. | C27: Leverandør/beskrivelse | D27: Beløb
A28: 2010-10-10 | C28: Eksempel 4 | D28: 4,000.00
A30: Subtotal | D30: =SUBTOTAL(109,Udgift410[Beløb]) -> 4,000.00
A31: s
A32: Udgift 5
A33: Dato | B33: Ordrenr. | C33: Leverandør/beskrivelse | D33: Beløb
A34: 2010-10-25 | C34: Eksempel 5 | D34: 5,000.00
A36: Subtotal | D36: =SUBTOTAL(109,Udgift510[Beløb]) -> 5,000.00

Sheet Nov
A1: Udgifter i november
C3: TOTAL | D3: =SUM(D10,D17,D24,D30,D36) -> 25,000.00
A4: Udgift 1
A5: Dato | B5: Ordrenr. | C5: Leverandør/beskrivelse | D5: Beløb
A6: 2010-11-08 | C6: Eksempel 1 | D6: 11,000.00
A10: Subtotal | D10: =SUBTOTAL(109,Udgift111[Beløb]) -> 11,000.00
A11: x
A12: Udgift 2
A13: Dato | B13: Ordrenr. | C13: Beskrivelse | D13: Beløb
A14: 2010-11-04 | C14: Eksempel 2 | D14: 2,000.00
A17: Subtotal | D17: =SUBTOTAL(109,Udgift211[Beløb]) -> 2,000.00
A18: x
A19: Udgift 3
A20: Dato | B20: Ordrenr. | C20: Leverandør/beskrivelse | D20: Beløb
A21: 2010-11-02 | C21: Eksempel 3 | D21: 3,000.00
A24: Subtotal | D24: =SUBTOTAL(109,Udgift311[Beløb]) -> 3,000.00
A25: x
A26: Udgift 4
A27: Dato | B27: Ordrenr. | C27: Leverandør/beskrivelse | D27: Beløb
A28: 2010-11-10 | C28: Eksempel 4 | D28: 4,000.00
A30: Subtotal | D30: =SUBTOTAL(109,Udgift411[Beløb]) -> 4,000.00
A31: s
A32: Udgift 5
A33: Dato | B33: Ordrenr. | C33: Leverandør/beskrivelse | D33: Beløb
A34: 2010-11-25 | C34: Eksempel 5 | D34: 5,000.00
A36: Subtotal | D36: =SUBTOTAL(109,Udgift511[Beløb]) -> 5,000.00

Sheet Dec
A1: Udgifter i december
C3: TOTAL | D3: =SUM(D10,D17,D24,D30,D36) -> 26,000.00
A4: Udgift 1
A5: Dato | B5: Ordrenr. | C5: Leverandør/beskrivelse | D5: Beløb
A6: 2010-12-08 | C6: Eksempel 1 | D6: 12,000.00
A10: Subtotal | D10: =SUBTOTAL(109,Udgift112[Beløb]) -> 12,000.00
A11: x
A12: Udgift 2
A13: Dato | B13: Ordrenr. | C13: Beskrivelse | D13: Beløb
A14: 2010-12-04 | C14: Eksempel 2 | D14: 2,000.00
A17: Subtotal | D17: =SUBTOTAL(109,Udgift212[Beløb]) -> 2,000.00
A18: x
A19: Udgift 3
A20: Dato | B20: Ordrenr. | C20: Leverandør/beskrivelse | D20: Beløb
A21: 2010-12-02 | C21: Eksempel 3 | D21: 3,000.00
A24: Subtotal | D24: =SUBTOTAL(109,Udgift312[Beløb]) -> 3,000.00
A25: x
A26: Udgift 4
A27: Dato | B27: Ordrenr. | C27: Leverandør/beskrivelse | D27: Beløb
A28: 2010-12-10 | C28: Eksempel 4 | D28: 4,000.00
A30: Subtotal | D30: =SUBTOTAL(109,Udgift412[Beløb]) -> 4,000.00
A31: s
A32: Udgift 5
A33: Dato | B33: Ordrenr. | C33: Leverandør/beskrivelse | D33: Beløb
A34: 2010-12-25 | C34: Eksempel 5 | D34: 5,000.00
A36: Subtotal | D36: =SUBTOTAL(109,Udgift512[Beløb]) -> 5,000.00
